Cogmind - Beta 15 @@@ ROGUE MODE // 2025.09.11 @ 20:02:44 Player: 1R0 Result: Destroyed by G-47 Trooper with Particle Gun Performance ------------- Evolutions (2) 1000 Regions Visited (3) 600 Robots Destroyed (10) 50 Value Destroyed (256) 256 Prototype IDs (1) 20 Alien Tech Used (0) 0 Bonus (0) 0 TOTAL SCORE: 1926 Bonus ------- None Cogmind --------- Core Integrity 0/550 Matter 258/300 Energy 100/100 System Corruption 0% Temperature Cool (9) Movement Core (50) Location -8/Materials Parts ------- > --- POWER (1) -------- (None) > --- PROPULSION (4) --- (None) > --- UTILITY (4) ------ Terrain Scan Processor > --- WEAPON (2) ------- (None) > --- INVENTORY (5) ---- VTOL Module Terrain Scan Processor Hardlight Generator Autogun Improved Datajack Peak State ------------ > --- POWER ------------ Cooled Ion Engine > --- PROPULSION ------- Titanium Leg Titanium Leg Cesium-ion Thruster > --- UTILITY ---------- Terrain Scan Processor > --- WEAPON ----------- EM Pulse Cannon EM Pulse Cannon > --- INVENTORY -------- VTOL Module Terrain Scan Processor Hardlight Generator Autogun Improved Datajack [Rating: 21] Favorites ----------- Power Ion Engine Engine Ion Engine Propulsion Light Treads Treads Light Treads Leg Aluminum Leg Hover Unit Improved Hover Unit Flight Unit Cesium-ion Thruster Utility Terrain Scan Processor Processor Terrain Scan Processor Weapon Assault Rifle Energy Gun Small Laser Energy Cannon EM Pulse Cannon Ballistic Gun Assault Rifle Ballistic Cannon Light Cannon Build | -11 -10 -9 -8 ------- Run | Yrd Mat Mat Mat Slots Evolved 4 | . . 2 2 Power . | . . . . Propulsion 2 | . . 2 . Utility 2 | . . . 2 Weapon . | . . . . Parts Attached 25 | 6 2 10 7 Power 6 | 1 . 3 2 Engine 6 | 1 . 3 2 Core . | . . . . Reactor . | . . . . Propulsion 10 | 2 2 3 3 Treads 2 | 2 . . . Leg 3 | . . 1 2 Wheel . | . . . . Hover 4 | . 2 2 . Flight 1 | . . . 1 Utility 1 | . . 1 . Device . | . . . . Storage . | . . . . Processor 1 | . . 1 . Hackware . | . . . . Protection . | . . . . Artifact . | . . . . Weapon 8 | 3 . 3 2 Energy Gun 3 | 1 . 2 . Energy Cannon 2 | . . . 2 Ballistic Gun 2 | 2 . . . Ballistic Cannon 1 | . . 1 . Launcher . | . . . . Special Weapon . | . . . . Impact Weapon . | . . . . Slashing Weapon . | . . . . Piercing Weapon . | . . . . Special Melee Weapon . | . . . . Unidentified Prototypes 1 | . . 1 . Parts Lost 15 | . . 6 9 Power 3 | . . 1 2 Propulsion 6 | . . 3 3 Utility . | . . . . Weapon 6 | . . 2 4 Highest Loss Streak 6 | . . 6 5 To Critical Strikes . | . . . . Average Backups 4 | 2 4 4 4 Power 1 | . 1 1 . Propulsion 1 | 1 1 1 1 Utility . | . . . 1 Weapon 1 | . 1 1 1 Tool/Special . | . . . . Unused Backups 10 | . 2 2 6 Power 1 | . . 1 . Propulsion 4 | . 2 1 1 Utility 3 | . . . 3 Weapon 1 | . . . 1 Tool/Special 1 | . . . 1 Average Slot Usage (%) 51 | . 71 47 41 Engine 10 | . 14 10 6 Treads 6 | . 25 . . Leg 4 | . . . 10 Hover 5 | . 2 12 . Processor 6 | . . 7 9 Energy Gun 3 | . . 2 7 Ballistic Gun 9 | . 28 7 . Ballistic Cannon 4 | . . 5 6 Peak Build Rating 21 | 5 7 14 21 Average Rating 6 | 3 5 7 8 On Entrance 4 | . 5 7 7 Naked Turns . | . . . . Heaviest Build 20 | 9 9 13 20 Greatest Support 44 | 40 40 28 44 Greatest Overweight (x) 3 | . . 3 3 Average Overweight (x) . | . . . . Largest Inventory Capacity 5 | 5 5 5 5 Average Capacity 5 | 5 5 5 5 Most Carried 5 | 4 5 5 5 Average Carried 4 | 2 4 4 4 Final Capacity 5 | 5 5 5 5 Final Carried 5 | 4 5 5 5 Class Distribution -------------------- 100% | Mutant Dominant Class ---------------- Mutant | -10/Materials Mutant | -9/Materials Mutant | -8/Materials Resources | -11 -10 -9 -8 ----------- Run | Yrd Mat Mat Mat Matter Collected 396 | 166 30 200 . Remotely . | . . . . Salvage Created 348 | . 30 258 60 Parts 17 | . 1 12 4 Haulers Intercepted 1 | . 1 . . Recyclers Shooed . | . . . . Parts Field Recycled . | . . . . Retrieved Matter . | . . . . Parts Self-Destructed . | . . . . Prevented . | . . . . Kills | -11 -10 -9 -8 ------- Run | Yrd Mat Mat Mat Combat Hostiles Destroyed 9 | . . 8 1 Guns 6 | . . 6 . Cannons 3 | . . 2 1 Classes Destroyed 4 | . 1 3 . Hauler 1 | . 1 . . Swarmer 4 | . . 4 . Grunt 1 | . . 1 . Sentry 4 | . . 3 1 Best Kill Streak 7 | . 1 7 1 Combat Bots Only 7 | . . 7 1 Max Kills in Single Turn 1 | . 1 1 1 Gunslinging . | . . . . Exploded . | . . . . Melee . | . . . . Uniques/NPCs Destroyed . | . . . . Combat | -11 -10 -9 -8 -------- Run | Yrd Mat Mat Mat Hostile Shots Fired 225 | . . 94 131 Missed 75 | . . 31 44 Hits 150 | . . 63 87 Melee 8 | . . . 8 Projectile 142 | . . 63 79 Critical Strikes 5 | . . 2 3 Damage Taken 2145 | . . 736 1409 Core 768 | . . 210 558 Absorbed by Shields . | . . . . Core Remaining (%) 82 | 100 100 47 . Volleys Fired 31 | . . 24 7 Largest 2 | . . 2 2 Hottest 126 | . . 65 126 Shots Fired 45 | . . 34 11 Gun 29 | . . 27 2 Cannon 16 | . . 7 9 Launcher . | . . . . Special . | . . . . Kinetic 19 | . . 17 2 Thermal 2 | . . . 2 Explosive . | . . . . Electromagnetic 24 | . . 17 7 Robot Hit Streak 16 | . . 16 4 Robot Miss Streak 8 | . . 8 2 Penetration Max . | . . . . Secondary Targets 2 | . . 2 . Max Gunslinging Chain 1 | . . 1 . Shots Hit Robots 28 | . . 22 6 Core Hits 17 | . . 14 3 Critical Kills . | . . . . Critical Parts Destroyed . | . . . . Critical Strikes 1 | . . 1 . Blast 1 | . . 1 . Melee Attacks . | . . . . Impact . | . . . . Slashing . | . . . . Piercing . | . . . . Sneak Attacks . | . . . . Combat Hostiles . | . . . . Follow-up Attacks . | . . . . Damage Inflicted 481 | . 6 330 145 Guns 224 | . . 212 12 Cannons 233 | . . 117 116 Explosions . | . . . . Melee . | . . . . Ramming 24 | . 6 1 17 Kinetic 179 | . . 160 19 Thermal 12 | . . . 12 Explosive . | . . . . Electromagnetic 266 | . . 169 97 Impact . | . . . . Slashing . | . . . . Piercing . | . . . . Highest Corruption . | . . . . Average Corruption . | . . . . Corruption Purged . | . . . . Corruption Blocked . | . . . . Overload Shots . | . . . . Overflow Damage . | . . . . Projectiles . | . . . . Explosions . | . . . . Melee . | . . . . Knockbacks . | . . . . Impact . | . . . . Kinetic . | . . . . Secondary . | . . . . Self-Inflicted Damage 8 | . . . 8 Shots . | . . . . Rammed 3 | . . 1 2 Targets Rammed 4 | . 1 1 2 Kicked . | . . . . Crushed 1 | . 1 . . Highest Temperature 150 | . . 21 150 Average Temperature 39 | . . 5 64 Received Heat Transfer 597 | . . 174 423 Siege Activations . | . . . . Martial Activations . | . . . . Shielding Activations . | . . . . Robots Disrupted . | . . . . Combat Hostiles . | . . . . Robots Corrupted . | . . . . Combat Hostiles . | . . . . Parts Fried 1 | . . 1 . Impact Corruptions . | . . . . Robots Melted . | . . . . Combat Hostiles . | . . . . Parts Melted . | . . . . Heat Transferred 25 | . . . 25 Parts Sabotaged . | . . . . Parts Stolen . | . . . . Parts Stripped . | . . . . Power Chain Reactions . | . . . . Alert | -11 -10 -9 -8 ------- Run | Yrd Mat Mat Mat Maximum Alert Level . | . . . . Low Security (%) 100 | 100 100 100 100 Level 1 . | . . . . Level 2 . | . . . . Level 3 . | . . . . Level 4 . | . . . . Level 5 . | . . . . High Security . | . . . . Max Security . | . . . . Peak Influence 110 | . 7 110 35 Initial 27 | . . . 27 Average 18 | . . 49 5 Influence Increases 343 | . 7 230 106 Destroy 0b10 Robot/C 180 | . . 160 20 Destroy 0b10 Robot/NC 5 | . 5 . . Destroy Leader 62 | . 2 50 10 Successful Hack 6 | . . 5 1 Lose Combat Pursuer 90 | . . 15 75 Influence Decreases 308 | . 7 165 136 Entered New Map 38 | . . . 38 Time Decay 185 | . 7 110 68 Lost Part 85 | . . 55 30 Squads Dispatched 4 | . . 3 1 Investigation 2 | . . 1 1 Extermination . | . . . . Reinforcement 2 | . . 2 . Assault . | . . . . Garrison . | . . . . Intercept . | . . . . Searches Triggered . | . . . . Construction Impeded . | . . . . Haulers Reinforced . | . . . . Active Scanning Responses . | . . . . Cargo Convoy Interrupts . | . . . . Stealth | -11 -10 -9 -8 --------- Run | Yrd Mat Mat Mat Distress Signals 3 | . . 1 2 Communications Jammed . | . . . . Distress Signals . | . . . . Times Spotted 32 | . 4 14 14 Peak Tracking Total 11 | . 3 9 11 Tactical Retreats 4 | . . 1 3 Traps | -11 -10 -9 -8 ------- Run | Yrd Mat Mat Mat Traps Triggered 1 | . . . 1 Indirectly . | . . . . Trap Hack Attempts . | . . . . Triggered . | . . . . Disarmed . | . . . . Reprogrammed . | . . . . Reused . | . . . . Traps Extracted . | . . . . Installed . | . . . . Triggered . | . . . . Machines | -11 -10 -9 -8 ---------- Run | Yrd Mat Mat Mat Machines Disabled . | . . . . Max in Single Turn . | . . . . Machines Repaired . | . . . . Machines Dismantled . | . . . . Machines Sabotaged . | . . . . Overloaded Fab Kills . | . . . . Hacking | -11 -10 -9 -8 --------- Run | Yrd Mat Mat Mat Machines Accessed 2 | . . 1 1 Terminals 2 | . . 1 1 Fabricators . | . . . . Repair Stations . | . . . . Recycling Units . | . . . . Scanalyzers . | . . . . Garrison Access . | . . . . Total Hacks 8 | . . 4 4 Successful 2 | . . 1 1 Failed 6 | . . 3 3 Catastrophic 1 | . . 1 . Database Lockouts . | . . . . Manual 5 | . . 5 . Terminals 8 | . . 4 4 Fabricators . | . . . . Repair Stations . | . . . . Recycling Units . | . . . . Scanalyzers . | . . . . Garrison Access . | . . . . Terminal Hacks 2 | . . 1 1 Record 1 | . . . 1 Zone Layout 1 | . . 1 . Fabricator Hacks . | . . . . Repair Station Hacks . | . . . . Recycling Unit Hacks . | . . . . Scanalyzer . | . . . . Garrison Access Hacks . | . . . . Unauthorized Hacks . | . . . . Terminals . | . . . . Fabricators . | . . . . Repair Stations . | . . . . Recycling Units . | . . . . Scanalyzers . | . . . . Garrison Access . | . . . . Data Cores Recovered . | . . . . Used . | . . . . Hacking Detections 2 | . . 1 1 Full Trace Events 2 | . . 1 1 Feedback Events . | . . . . Feedback Blocked . | . . . . Robot Schematics Acquired . | . . . . Robots Built . | . . . . Authchips . | . . . . Time . | . . . . Total Robot Build Rating . | . . . . Part Schematics Acquired . | . . . . Parts Built . | . . . . Authchips . | . . . . Time . | . . . . Total Part Build Rating . | . . . . Parts Repaired . | . . . . Time . | . . . . Parts Recycled . | . . . . Recycled Matter . | . . . . Retrieved Matter . | . . . . Retrieved Components . | . . . . Parts Scanalyzed . | . . . . Part Schematics Acquired . | . . . . Parts Damaged . | . . . . Bothacking | -11 -10 -9 -8 ------------ Run | Yrd Mat Mat Mat Used RIF Installer . | . . . . Robots Hacked . | . . . . Non-combat . | . . . . Combat . | . . . . Robot Hacks Applied . | . . . . Relay Couplers Released . | . . . . Fabnet Peak Effective % . | . . . . Robots Rewired . | . . . . Allies Hacked . | . . . . Hacks Repelled . | . . . . Allies | -11 -10 -9 -8 -------- Run | Yrd Mat Mat Mat Total Allies . | . . . . Largest Group . | . . . . Highest-Rated Group . | . . . . Highest-Rated Ally . | . . . . Total Orders . | . . . . Ally Attacks . | . . . . Total Damage . | . . . . Kills . | . . . . Allies Corrupted . | . . . . Allies Melted . | . . . . Intel | -11 -10 -9 -8 ------- Run | Yrd Mat Mat Mat Active Infowar (turns) . | . . . . Robot Analysis Total . | . . . . Derelict Logs Recovered . | . . . . Drone Launches . | . . . . Drone Recoveries . | . . . . Exploration | -11 -10 -9 -8 ------------- Run | Yrd Mat Mat Mat Turns Passed 929 | 90 209 304 326 Spaces Moved 707 | 50 137 255 265 Core 125 | 9 . 87 29 Treads 158 | 41 117 . . Legs 210 | . . 7 203 Wheels . | . . . . Hover 181 | . 20 161 . Flight 33 | . . . 33 Fastest Speed 48 | 50 56 48 50 Average Speed 110 | 140 144 86 110 Slowest Speed 295 | 160 160 200 295 Overloaded Moves . | . . . . Propulsion Burnouts . | . . . . Robots Hopped 2 | . . . 2 Potential Cave-ins . | . . . . Cave-ins Triggered . | . . . . Exploration Rate (%) 24 | 5 29 28 34 Regions Visited 3 Branch Regions . Pre-discovered Areas . | . . . . Known Exits Taken . | . . . . Unknown Exits Taken 3 | 1 1 1 . Scrap Searched . | . . . . Spaces Dug . | . . . . Terrain Destroyed . | . . . . Melee . | . . . . Projectile . | . . . . AOE . | . . . . Terrain Rammed . | . . . . Walls Destroyed . | . . . . Machines Disabled . | . . . . Actions | -11 -10 -9 -8 --------- Run | Yrd Mat Mat Mat Total 805 | 70 148 304 283 Wait 6 | 6 . . . Move 701 | 49 136 254 262 Hop 1 | . . . 1 Pick Up 23 | 9 5 7 2 Fast Attach 10 | . . 5 5 Attach 12 | 5 2 4 1 Detach . | . . . . Swap 4 | 1 . 2 1 Drop 13 | . 4 7 2 Fire 31 | . . 24 7 Melee . | . . . . Ram 3 | . . 1 2 Kick . | . . . . Crush 1 | . 1 . . Escape Stasis . | . . . . Rewire . | . . . . Trap . | . . . . Miscellaneous . | . . . . Route ------- -11/Scrapyard -10/Materials -9/Materials -8/Materials History --------- Turn | Location | Event 37 | -11/Scrapyard | Discovered new exit (range 16) 91 | -11/Scrapyard | Entered Materials 256 | -10/Materials | Discovered new exit (range 8) 300 | -10/Materials | Entered another Materials area 300 | -9/Materials | Evolved 2 slots: Propulsion x2 322 | -9/Materials | Build established: Mutant 474 | -9/Materials | Lost 6 parts (1p3n2w) 478 | -9/Materials | Destroyed 7 combat bots 542 | -9/Materials | Discovered new exit (range 16) 576 | -9/Materials | Core integrity fell below 50% 604 | -9/Materials | Entered another Materials area 604 | -8/Materials | Evolved 2 slots: Utility x2 887 | -8/Materials | Core integrity fell below 50% 897 | -8/Materials | Lost 4 parts (1p1n2w) 914 | -8/Materials | Core integrity fell below 20% 930 | -8/Materials | Destroyed by G-47 Trooper with Particle Gun Last Messages --------------- 00888_ Slug penetrates Wall. 00893_ Acquired Hardlight Generator. 00894_ Y-45 Defender destroyed. 00896_ W-25 Informer sends out distress signal. 00900_ Slug penetrates Wall. 00901_ Titanium Leg severed. 00903_ Slug penetrates Y-45 Defender. 00903_ EM Pulse Cannon destroyed. 00906_ Titanium Leg destroyed. 00908_ EM Pulse Cannon destroyed. 00908_ Cesium-ion Thruster destroyed. 00909_ G-47 Trooper misfires. 00914_ Cld. Ion Engine destroyed. 00915_ G-47 Trooper destroyed. 00921_ Slammed into W-25 Informer. 00925_ K-01 Serf collects debris. 00928_ Triggered Alarm Trap. 00928_ An alarm sounds. 00928_ ALERT: Alarm triggered, dispatching investigation squad. 00929_ K-01 Serf collects debris. Map ----- +----------------------------------------------------+ | #?????????????????????????????????????? | | ####??????????????????????????????????? | | +???????????????????????????? ?????? | | ####???????????????????????????? ##???? | | ???????????????????????????????? ???? | | ???????????????????????###?????? ???? | | ?????????????????#######=##????? ????? | | ?????????????????# !%* #????? ????? | | ???????????####### = #????? ????? | | ############ # = !#????# ????? | | # ]]] #????# #????? | | " ]]] = #????# #????? | | # *%! #????# #????? | | #+########## # [ #???## ##???? | | #??????## ## ##### #???? | | #???????# ## / #???? | | #???????# ############### #???? | | #???????+ #?????????????## ##???? | | #?????? # #??????????????# #????? | | #####????? # #??????????????# #????? | | ????????? ?# #??????????????# #?? # | | ????????###?# ################ # # | | ????????????# g w + # | | ????????????# # # | | ????????????# # # | | ????????????# a @ #? # | | ????????????# ###### #?? # | | ?????????????????????????# k#???## | | ?????????????????????????# #????? | | ?????????????????????????# #????? | | ?????????????????????????# #????? | | ?????????????????????????# #????? | | ?????????????????????????#########????? | | ??????????????????????????????????????? | | ??????????????????????????????????????? | | ??????????????????????????????????????? | | ??????????????????????????????????????? | | ??????????????????????????????????????? | | | | | | | | | | | | | | | | | | | | | | | | | +----------------------------------------------------+ Best States ------------- Heat Dissipation 31 Energy Generation 14 Energy Capacity 280 Matter Stores 283 Matter Capacity 300 Sight Range 16 Terrain Scan Density 85 Evasion (%) 59 Recoil Reduction 2 Item Schematics ----------------- None Robot Schematics ------------------ None Fabricated ------------ Nothing Repaired ---------- Nothing Alien Tech Used ----------------- None Achievements -------------- None Challenges ------------ None Game ------ Seed SigixSmartbombHumpback Manual? 0 Play Time 00:13:42 Cumulative 4.2 hours Start 2025.09.11 @ 19:48:21 End 2025.09.11 @ 20:02:44 Sessions 1 Manual Loads 0 Difficulty Rogue Special Mode None Game No. 18 Rogue 15 Adventurer 3 Explorer 0 Win Type - Total 0 Types 0/0/0/0/0/0/0/0/0/0 Lore% 11 Gallery% 10 Achievement% 11 Wizard Run 0 Options --------- Layout 0 ASCII 0 Keyboard 0 Movement Mouse Keybinds 0 Fullscreen 2 Font 24/Smallcaps Map View 38x25 Zoom Use 98% Tactical HUD 1 Map Filters NONE Filters NONE Steam 1 RUN: 9b24c1b3-bf4a-4603-adef-187be18e5eb0